[Event "44th Chess Olympiad Open 2022"]
[Site "Chennai"]
[Date "2022.08.05"]
[Round "7.27"]
[White "Gourlay, Iain"]
[Black "Panjwani, Raja"]
[Result "0-1"]
[ECO "A49"]
[WhiteElo "2321"]
[BlackElo "2450"]
[Annotator "TA"]
[PlyCount "106"]
[EventDate "2022.07.29"]
[EventType "team-tourn"]
[EventCountry "IND"]
[SourceTitle "playchess.com"]
[Source "ChessBase"]
[SourceQuality "1"]
[WhiteTeam "Scotland"]
[BlackTeam "Canada"]
[WhiteTeamCountry "SCO"]
[BlackTeamCountry "CAN"]
[TimeControl "40/5400+30:1800+30"]

{[%evp 9,106,14,6,13,18,16,22,14,13,5,9,0,5,0,4,-28,5,-14,0,-15,0,0,0,0,7,11,15,-2,-13,-18,-22,-13,-20,-13,-14,-16,0,-3,39,41,39,48,46,38,90,36,30,-15,-24,-11,-23,-154,-154,-236,-236,-229,-229,-229,-229,-285,-248,-480,-480,-464,-452,-1002,-939,-844,-830,-984,-521,-29938,-29940,-5808,-4886,-29954,-11884,-29950,-12842,-29974,-29975,-29975,-29976,-29976,-29977,-29978,-29977,-29977,-29978,-29978,-29979,-29981,-29981,-29982,-29983,-29984,-29985,-29986,-29978]} 1. d4 {[%emt 0:00:08]} Nf6 {[%emt 0:00:10]} 2. Nf3 {[%emt 0:00:23][%cal Bg1f3,Bf3d2,Bd2b3][%mdl 32]} g6 {[%emt 0:00:11]} 3. g3 {[%emt 0:00:31]} Bg7 {[%emt 0:00:21]} 4. Bg2 {[%emt 0:00:18]} c5 {[%emt 0:00:15]} 5. dxc5 {[%emt 0:01:19]} Qa5+ {[%emt 0:00:09]} 6. Nfd2 {[%emt 0:01:25] A49: 1 d4 Nf6 2 Nf3 g6 3 g3: Anti-King's Indian systems.} Qxc5 {[%emt 0:00:38]} 7. Nc3 {[%emt 0:00:52]} d6 {[%emt 0:01:14]} 8. Nb3 {[%emt 0:01:01] The position is equal.} Qc7 {[%emt 0:00:08]} 9. Bg5 {[%emt 0:10:20] [#] next Bxf6 is good for White.} Qd8 $146 {[%emt 0:00:22]} ({Predecessor:} 9... Nbd7 10. O-O h6 11. Be3 Ne5 12. Bd4 O-O 13. e4 Bg4 14. f3 Be6 15. Nd5 Bxd5 16. exd5 {0-1 (47) Gonzalez Trigal,J (2369)-Grigoryan,K (2654) Santiago de Compostela 2020}) 10. Qd2 {[%emt 0:05:32]} h6 {[%emt 0:00:11]} 11. Bxf6 {[%emt 0:03:12]} Bxf6 {[%emt 0:00:14]} 12. Nd5 {[%emt 0:01:04]} Bg7 {[%emt 0:08:31]} 13. Qa5 {[%emt 0:04:49]} Na6 {[%emt 0:07:40] Prevents Nc7+.} (13... Bxb2 $2 14. Nc7+ Qxc7 15. Qxc7 $18) 14. Qxd8+ {[%emt 0:03:48]} Kxd8 {[%emt 0:01:47]} 15. O-O-O {[%emt 0:01:52]} Rb8 {[%emt 0:08:54]} 16. e4 {[%emt 0:09:12]} e6 {[%emt 0:18:24]} 17. Ne3 {[%emt 0:06:07] Pair of Knights!} Ke7 {[%emt 0:01:23]} 18. Nc4 {[%emt 0:08:40]} Rd8 {[%emt 0:00:05]} 19. Nba5 {[%emt 0:05:24]} Nb4 {[%emt 0:01:18]} 20. a3 {[%emt 0:03:44]} Nc6 {[%emt 0:00:19]} 21. Rd2 {[%emt 0:01:10]} Bd7 {[%emt 0:12:47]} 22. Rhd1 {[%emt 0:10:01]} Be8 {[%emt 0:06:20]} 23. Nb3 {[%emt 0:03:06][%cal Rc4d6]} b6 {[%emt 0:17:51][%cal Oc6a5]} 24. Nxd6 {[%emt 0:04:18]} (24. Rxd6 Rxd6 25. Nxd6 (25. Rxd6 b5 $17) 25... Rd8 $11) 24... Na5 {[%emt 0:00:31]} 25. Nxa5 {[%emt 0:07:08]} bxa5 {[%emt 0:00:07]} 26. b3 {[%emt 0:02:19]} Bc6 {[%emt 0:01:41]} (26... a4 $14) 27. a4 {[%emt 0:03:03]} (27. f4 $16) 27... Bxa4 $14 {[%emt 0:02:44]} 28. Nxf7 {[%emt 0:01:38]} ({Don't blunder} 28. bxa4 $2 Bb2+ 29. Kb1 Bc3+ 30. Ka2 Bxd2 $19) (28. e5 $5 {[%cal Rb3a4]} Be8 29. f4 $14) 28... Rxd2 {[%emt 0:01:44]} 29. Rxd2 {[%emt 0:00:11]} Bb5 {[%emt 0:00:45]} 30. Nd6 {[%emt 0:00:22] White is on the road to losing.} (30. c4 $1 $11 Bd7 31. f4) 30... Bc3 $17 {[%emt 0:00:07]} 31. Nxb5 {[%emt 0:02:08]} (31. Rd1 $17 Be2 32. e5) 31... Bxd2+ $19 {[%emt 0:00:05]} 32. Kxd2 {[%emt 0:00:05]} Rxb5 $17 {[%emt 0:00:04][%mdl 4096] Endgame KR-KB} 33. Bf1 {[%emt 0:00:25]} Rb4 {[%emt 0:00:44]} 34. Bc4 {[%emt 0:00:45]} g5 {[%emt 0:02:11]} 35. f4 $2 {[%emt 0:00:26]} (35. c3 {was necessary.} Rb8 36. f3) 35... gxf4 $19 {[%emt 0:00:26]} 36. gxf4 {[%emt 0:00:05]} a4 {[%emt 0:01:27][%cal Ba5a4,Ba4a3][%mdl 32] Hoping for ...a3.} 37. c3 {[%emt 0:00:47] [#]} (37. Kc3 {[#]} a3 $1 38. e5 (38. Kxb4 $2 {is the wrong capture.} a2 $19) 38... a5) (37. Kc1 $142 Rb8 38. bxa4) 37... a3 $1 {[%emt 0:00:18][%cal Ob4c4] ...Rxc4! is the strong threat.} 38. Kc2 {[%emt 0:00:16]} Rb8 {[%emt 0:00:16]} 39. f5 {[%emt 0:01:20]} Rg8 {[%emt 0:01:47]} 40. Bxe6 {[%emt 0:00:40]} Rg2+ {[%emt 0:00:51]} 41. Kb1 {[%emt 0:30:19]} Rxh2 {[%emt 0:30:33]} 42. e5 {[%emt 0:00:00]} Re2 {[%emt 0:00:00]} 43. Bc8 {[%emt 0:00:00]} Rxe5 {[%emt 0:00:00] ( -> ...Rc5)} 44. Ka2 {[%emt 0:00:00]} Rc5 {[%emt 0:00:00][%csl LRc3,LRc8] Black mates.} 45. Be6 {[%emt 0:00:00]} Rxc3 {[%emt 0:00:00]} 46. Kxa3 {[%emt 0:00:00]} h5 {[%emt 0:00:00][%cal Bh6h5,Bh5h4,Bh4h3,Bh3h2][%mdl 32]} 47. Kb4 {[%emt 0:00:00]} Rc7 {[%emt 0:00:00]} 48. Bd5 {[%emt 0:00:00]} h4 {[%emt 0:00:00]} 49. Bg2 {[%emt 0:00:00]} Kf6 {[%emt 0:00:00]} 50. Bh3 {[%emt 0:00:00]} Re7 {[%emt 0:00:00]} 51. Ka4 {[%emt 0:00:00]} Re3 {[%emt 0:00:00]} 52. Bg2 {[%emt 0:00:00]} h3 {[%emt 0:00:00]} 53. Bb7 {[%emt 0:00:00]} h2 {[%emt 0:00:00] Weighted Error Value: White=0.65/Black=0.12 (very precise)} 0-1

[Event "44th Chess Olympiad Open 2022"]
[Site "Chennai"]
[Date "2022.08.05"]
[Round "7.27"]
[White "Tate, Alan"]
[Black "Preotu, Razvan"]
[Result "0-1"]
[ECO "D71"]
[WhiteElo "2313"]
[BlackElo "2445"]
[Annotator "ChessBase"]
[PlyCount "57"]
[EventDate "2022.07.29"]
[EventType "team-tourn"]
[EventCountry "IND"]
[SourceTitle "playchess.com"]
[Source "ChessBase"]
[SourceQuality "1"]
[WhiteTeam "Scotland"]
[BlackTeam "Canada"]
[WhiteTeamCountry "SCO"]
[BlackTeamCountry "CAN"]
[TimeControl "40/5400+30:1800+30"]

1. d4 {[%emt 0:00:19]} Nf6 {[%emt 0:00:17]} 2. c4 {[%emt 0:00:23]} g6 {[%emt 0:00:16]} 3. g3 {[%emt 0:00:16]} c6 {[%emt 0:08:07]} 4. Bg2 {[%emt 0:02:41]} d5 {[%emt 0:02:43]} 5. e3 {[%emt 0:02:15]} Bg7 {[%emt 0:00:23]} 6. Ne2 {[%emt 0:00:58]} O-O {[%emt 0:00:12]} 7. O-O {[%emt 0:00:37]} Re8 {[%emt 0:00:29]} 8. b3 {[%emt 0:03:03]} dxc4 {[%emt 0:05:42]} 9. bxc4 {[%emt 0:00:42]} e5 {[%emt 0:00:21]} 10. Nbc3 {[%emt 0:04:52]} exd4 {[%emt 0:03:06]} 11. exd4 {[%emt 0:04:26]} Be6 {[%emt 0:10:17]} 12. d5 {[%emt 0:21:44]} cxd5 {[%emt 0:00:42]} 13. Bg5 {[%emt 0:11:46]} Qd7 {[%emt 0:14:38]} 14. Rb1 {[%emt 0:06:58]} Ne4 {[%emt 0:09:19]} 15. cxd5 {[%emt 0:02:37]} Bf5 {[%emt 0:00:22]} 16. Nxe4 {[%emt 0:04:12]} Bxe4 {[%emt 0:00:07]} 17. Bxe4 {[%emt 0:02:00]} Rxe4 {[%emt 0:00:06]} 18. Qd2 {[%emt 0:04:53]} Qf5 {[%emt 0:01:33]} 19. Rxb7 {[%emt 0:04:29]} Nd7 {[%emt 0:04:59]} 20. d6 {[%emt 0:09:22]} Ne5 {[%emt 0:22:19]} 21. f4 {[%emt 0:00:00]} Nc4 {[%emt 0:00:21]} 22. Qb4 {[%emt 0:00:34]} Nb6 {[%emt 0:00:25]} 23. Qd2 {[%emt 0:02:11]} h6 {[%emt 0:05:02]} 24. Be7 {[%emt 0:03:43]} Nc4 {[%emt 0:02:33]} 25. Qb4 {[%emt 0:01:50]} Rxe2 {[%emt 0:01:17]} 26. Qxc4 {[%emt 0:00:23]} Rc2 {[%emt 0:00:38]} 27. Rb5 {[%emt 0:01:33]} Rxc4 {[%emt 0:00:29]} 28. Rxf5 {[%emt 0:00:06]} gxf5 {[%emt 0:00:06]} 29. d7 {[%emt 0:00:04]} 0-1

[Event "44th Chess Olympiad Open 2022"]
[Site "Chennai"]
[Date "2022.08.05"]
[Round "7.28"]
[White "Carlsen, Magnus"]
[Black "Stanojoski, Zvonko"]
[Result "1-0"]
[ECO "D02"]
[WhiteElo "2864"]
[BlackElo "2412"]
[Annotator "TA"]
[PlyCount "137"]
[EventDate "2022.07.29"]
[EventType "team-tourn"]
[EventCountry "IND"]
[SourceTitle "playchess.com"]
[Source "ChessBase"]
[SourceQuality "1"]
[WhiteTeam "Norway"]
[BlackTeam "Macedonia"]
[WhiteTeamCountry "NOR"]
[BlackTeamCountry "MKD"]
[TimeControl "40/5400+30:1800+30"]

{[%evp 10,137,4,10,29,21,31,29,39,40,47,44,44,44,58,47,47,47,47,47,47,47,45,46,47,41,44,44,39,37,37,36,48,43,52,27,29,30,33,23,23,41,22,19,29,30,45,47,42,50,45,43,45,44,45,53,51,51,43,43,70,67,76,71,153,136,191,181,186,172,198,197,195,182,249,253,409,403,367,357,422,422,474,454,1406,2160,4686,3927,2863,2671,5273,2635,2567,2243,2220,1964,5314,5185,29972,29973,29973,29974,29974,29975,29975,29976,29976,29977,29977,29978,29978,29979,29979,29980,29982,29979,29981,29982,29982,29983,29991,29985,29985,29986,29993,29994,29995,29996,29996,29997]} 1. d4 {[%emt 0:00:19]} d5 {[%emt 0:00:29]} 2. Bf4 {[%emt 0:00:32]} e6 {[%emt 0:00:15]} 3. e3 {[%emt 0:01:00]} Nf6 {[%emt 0:00:42]} 4. Nf3 {[%emt 0:00:43]} Bd6 {[%emt 0:00:14]} 5. Nbd2 {[%emt 0:00:31]} Bxf4 {[%emt 0:01:59]} 6. exf4 {[%emt 0:00:02]} c5 {[%emt 0:00:16] D02: 1 d4 d5 2 Nf3 sidelines, including 2...Nf6 3 g3 and 2...Nf6 3 Bf4.} 7. dxc5 {[%emt 0:01:27]} Qc7 {[%emt 0:00:16][%csl LRc5,LRf4]} 8. g3 {[%emt 0:00:18]} Qxc5 {[%emt 0:00:15] White has an edge.} 9. Bd3 {[%emt 0:00:27]} Qb6 {[%emt 0:01:31]} 10. Nb3 {[%emt 0:03:46]} O-O {[%emt 0:01:58]} 11. O-O {[%emt 0:00:38][%cal Bh1f1,Bf1e1,Be1e5][%mdl 32] [#]} Na6 $146 {[%emt 0:01:39]} ({Predecessor:} 11... Bd7 12. Qe2 Nc6 13. c3 Rfe8 14. Rfe1 a5 15. Nbd4 Nxd4 16. Nxd4 Qc5 17. a4 Bc6 {1-0 (41) Gukesh,D (2578)-Klabis,R (2323) Riga 2021}) 12. c3 {[%emt 0:01:46]} Bd7 {[%emt 0:07:42]} 13. a4 {[%emt 0:06:04]} Nc5 {[%emt 0:00:00]} 14. Nxc5 {[%emt 0:00:58]} Qxc5 {[%emt 0:00:00]} 15. Nd4 {[%emt 0:03:33]} a5 {[%emt 0:00:00]} 16. Re1 {[%emt 0:04:01]} Qb6 {[%emt 0:02:58]} 17. Qc2 {[%emt 0:03:32]} Rfe8 {[%emt 0:07:11]} 18. Re5 {[%emt 0:04:47]} Bc6 {[%emt 0:03:27]} 19. Qe2 {[%emt 0:02:20]} Nd7 {[%emt 0:04:01][%cal Bf6d7,Bd7c5,Bc5e4][%mdl 32]} 20. Re3 {[%emt 0:00:56]} Nc5 {[%emt 0:00:19]} 21. Bc2 {[%emt 0:00:34]} g6 {[%emt 0:03:32]} 22. b3 {[%emt 0:00:30]} Ne4 {[%emt 0:13:33]} 23. Rd1 {[%emt 0:12:20]} Rac8 {[%emt 0:06:32]} 24. h4 {[%emt 0:04:33]} e5 {[%emt 0:00:00]} 25. fxe5 {[%emt 0:03:41]} (25. Bxe4 $2 exd4 26. Rxd4 dxe4 $19) 25... Rxe5 {[%emt 0:00:00][%cal Oe4c3]} 26. Qg4 {[%emt 0:06:22]} Rce8 {[%emt 0:02:57][%cal Oe4f2]} 27. Rde1 {[%emt 0:00:00] Threatens to win with Qf4.} Nf6 {[%emt 0:04:06]} 28. Qf4 {[%emt 0:00:00]} Rxe3 {[%emt 0:00:08]} 29. Rxe3 {[%emt 0:00:00]} Rxe3 {[%emt 0:00:05]} 30. Qxe3 {[%emt 0:00:00]} Qc5 {[%emt 0:09:35] Inhibits Qe7.} 31. Qf4 {[%emt 0:01:28]} Nd7 {[%emt 0:05:20]} 32. Qd2 {[%emt 0:01:07] Strongly threatening b4.} Ne5 {[%emt 0:01:43][%cal Oc5d4]} 33. Qe3 {[%emt 0:02:59]} Qd6 {[%emt 0:01:19]} 34. h5 {[%emt 0:01:02]} Qf6 {[%emt 0:00:59]} 35. Bd1 {[%emt 0:01:26]} Bd7 {[%emt 0:01:24] White leaves nothing to chance now.} 36. h6 {[%emt 0:01:01]} g5 {[%emt 0:02:58]} ({Black should play} 36... Qe7) 37. Nf3 {[%emt 0:02:18]} Ng4 {[%emt 0:13:33]} (37... Nc6 $16) 38. Qa7 $18 {[%emt 0:01:48]} (38. Qxg5+ $6 Qxg5 39. Nxg5 Nxh6 $14) 38... Qxh6 {[%emt 0:02:36]} 39. Qxb7 {[%emt 0:00:49]} (39. Qxa5 Nf6 $16) 39... Nf6 {[%emt 0:00:52]} 40. Qb8+ {[%emt 0:00:22]} Kg7 {[%emt 0:00:35] Hoping for ...g4.} 41. Qe5 {[%emt 0:30:20] Black must now prevent Nd4.} g4 {[%emt 0:32:24]} (41... Bg4 $2 42. Nd4 $1 Kg8 43. Qd6 $1 $18) (41... Qh5 {might work better.}) 42. Nd4 {[%emt 0:00:17] And now Bc2 would win.} Qc1 {[%emt 0:00:19] [#]} (42... Qh5 {is a better defense.} 43. Qf4 h6) 43. Kg2 $1 {[%emt 0:00:09]} h6 {[%emt 0:00:00]} 44. Bc2 {[%emt 0:02:00]} Qd2 {[%emt 0:00:00]} 45. Bf5 {[%emt 0:00:00]} Qg5 {[%emt 0:00:00]} 46. b4 {[%emt 0:01:24]} Bxa4 {[%emt 0:00:00]} (46... Bc8 $142 47. b5 Bxf5 48. Nxf5+ Kg6) 47. bxa5 {[%emt 0:00:00] Intending a6 and mate.} Bd1 {[%emt 0:00:00]} 48. a6 {[%emt 0:00:00] White threatens a7 and mate.} Qc1 {[%emt 0:00:00]} 49. a7 {[%emt 0:00:00][%cal Od4e6] Ne6+! would kill now.} Qa1 {[%emt 0:00:00]} 50. Qe7 {[%emt 0:00:00]} (50. Qb8 $142 Bf3+ 51. Nxf3 gxf3+ 52. Kxf3 Qh1+ 53. Ke2 Qh5+ 54. g4 Nxg4 55. Qf4 Nf6+ 56. Kd2) 50... Bf3+ {[%emt 0:00:00]} 51. Nxf3 {[%emt 0:00:00]} gxf3+ {[%emt 0:00:00]} 52. Kxf3 {[%emt 0:00:00][%mdl 4096] Endgame KQB-KQN} Qh1+ {[%emt 0:00:00]} 53. Ke2 {[%emt 0:00:00]} Qh5+ {[%emt 0:00:00]} 54. g4 {[%emt 0:00:00] White mates.} Nxg4 {[%emt 0:00:00] [#]} 55. a8=Q $1 {[%emt 0:00:10][%csl Ge7][%cal Ra8f8]} Ne5+ {[%emt 0:00:00]} 56. Ke3 {[%emt 0:01:59][%csl Ge7][%cal Ra8f8]} ({Not} 56. Bg4 Qxg4+ 57. Ke1 Qe4+ 58. Kf1 Qh1+ 59. Ke2 Qe4+ 60. Kf1 (60. Kd1 Qb1+ 61. Kd2 Nf3+ 62. Ke3 Qe1+ 63. Kxf3 Qxe7 $17) 60... Qh1+ 61. Ke2 Qe4+ 62. Kf1 $11 (62. Kd1 Qb1+ 63. Kd2 Nf3+ 64. Ke3 Qe1+ 65. Kxf3 Qxe7 $17)) 56... Qxf5 {[%emt 0:03:00]} 57. Qef8+ {[%emt 0:00:00]} Kg6 {[%emt 0:00:09]} 58. Qa6+ {[%emt 0:00:00]} f6 {[%emt 0:00:24]} 59. Qg8+ {[%emt 0:00:00]} Kh5 {[%emt 0:00:04]} 60. Qe2+ {[%emt 0:00:00]} Ng4+ {[%emt 0:00:13]} 61. Kd4 {[%emt 0:00:00]} Kh4 {[%emt 0:00:46]} 62. Qxd5 {[%emt 0:00:00]} Qf4+ {[%emt 0:00:35]} 63. Qde4 {[%emt 0:00:00]} Qd6+ {[%emt 0:00:35]} 64. Kc4 {[%emt 0:00:00][%csl Ge2][%cal Re4g4]} h5 {[%emt 0:01:16]} 65. f3 {[%emt 0:05:22]} Qa6+ {[%emt 0:05:39]} 66. Kb3 {[%emt 0:00:00]} Qb6+ {[%emt 0:00:10]} 67. Kc2 {[%emt 0:00:00]} f5 {[%emt 0:00:06]} 68. Qh2+ {[%emt 0:00:00]} Kg5 {[%emt 0:00:03]} 69. Qhf4+ {[%emt 0:00:00] Weighted Error Value: White=0.02 (flawless) /Black=0.30} 1-0

[Event "44th Chess Olympiad Open 2022"]
[Site "Chennai"]
[Date "2022.08.05"]
[Round "7.28"]
[White "Christiansen, Johan-Sebastian"]
[Black "Lazov, Toni"]
[Result "0-1"]
[ECO "A24"]
[WhiteElo "2593"]
[BlackElo "2374"]
[Annotator "ChessBase"]
[PlyCount "74"]
[EventDate "2022.07.29"]
[EventType "team-tourn"]
[EventCountry "IND"]
[SourceTitle "playchess.com"]
[Source "ChessBase"]
[SourceQuality "1"]
[WhiteTeam "Norway"]
[BlackTeam "Macedonia"]
[WhiteTeamCountry "NOR"]
[BlackTeamCountry "MKD"]
[TimeControl "40/5400+30:1800+30"]

1. Nf3 {[%emt 0:00:20]} d6 {[%emt 0:00:20]} 2. c4 {[%emt 0:00:09]} g6 {[%emt 0:00:58]} 3. Nc3 {[%emt 0:00:35]} Bg7 {[%emt 0:00:06]} 4. g3 {[%emt 0:00:10]} Nf6 {[%emt 0:04:31]} 5. Bg2 {[%emt 0:00:06]} O-O {[%emt 0:00:06]} 6. O-O {[%emt 0:00:17]} e5 {[%emt 0:00:06]} 7. d3 {[%emt 0:00:13]} a5 {[%emt 0:01:38]} 8. b3 {[%emt 0:03:41]} Re8 {[%emt 0:02:35]} 9. e4 {[%emt 0:01:03]} Bg4 {[%emt 0:06:02]} 10. h3 {[%emt 0:04:32]} Bxf3 {[%emt 0:00:15]} 11. Bxf3 {[%emt 0:00:04]} Nc6 {[%emt 0:00:15]} 12. Bg2 {[%emt 0:00:10]} Nd7 {[%emt 0:06:35]} 13. Rb1 {[%emt 0:01:34]} Nc5 {[%emt 0:07:00]} 14. a3 {[%emt 0:09:08]} Ne6 {[%emt 0:00:18]} 15. Be3 {[%emt 0:02:56]} Ncd4 {[%emt 0:11:23]} 16. Qd2 {[%emt 0:04:55]} c6 {[%emt 0:00:00]} 17. Ne2 {[%emt 0:05:09]} Nxe2+ {[%emt 0:06:52]} 18. Qxe2 {[%emt 0:00:02]} f5 {[%emt 0:00:39]} 19. f4 {[%emt 0:14:58]} exf4 {[%emt 0:02:56]} 20. gxf4 {[%emt 0:00:33]} Qh4 {[%emt 0:04:16]} 21. Kh1 {[%emt 0:04:03]} Re7 {[%emt 0:26:48]} 22. Bf2 {[%emt 0:09:05]} Qxf4 {[%emt 0:01:34]} 23. exf5 {[%emt 0:00:06]} gxf5 {[%emt 0:04:02]} 24. Qh5 {[%emt 0:11:20]} Rf7 {[%emt 0:00:00]} 25. Rbe1 {[%emt 0:02:09]} Be5 {[%emt 0:00:00]} 26. Bg1 {[%emt 0:00:12]} Qg3 {[%emt 0:00:00]} 27. d4 {[%emt 0:16:02]} Nxd4 {[%emt 0:02:50]} 28. c5 {[%emt 0:00:02]} Rg7 {[%emt 0:03:03]} 29. Rf2 {[%emt 0:00:01]} dxc5 {[%emt 0:03:28]} 30. Qh6 {[%emt 0:00:01]} Bc7 {[%emt 0:01:00]} 31. Qc1 {[%emt 0:00:34]} f4 {[%emt 0:02:24]} 32. Be4 {[%emt 0:02:57]} f3 {[%emt 0:02:02]} 33. Qxc5 {[%emt 0:00:35]} Ne2 {[%emt 0:00:16]} 34. Bh2 {[%emt 0:04:31]} Qxh3 {[%emt 0:00:02]} 35. Qc4+ {[%emt 0:02:41]} Kh8 {[%emt 0:00:08]} 36. Bxf3 {[%emt 0:01:18]} Ng3+ {[%emt 0:01:13]} 37. Kg1 {[%emt 0:00:01]} Ne4+ {[%emt 0:00:58]} 0-1

[Event "44th Chess Olympiad Open 2022"]
[Site "Chennai"]
[Date "2022.08.05"]
[Round "7.28"]
[White "Risteski, Emil"]
[Black "Tari, Aryan"]
[Result "0-1"]
[ECO "B12"]
[WhiteElo "2405"]
[BlackElo "2672"]
[Annotator "TA"]
[PlyCount "64"]
[EventDate "2022.07.29"]
[EventType "team-tourn"]
[EventCountry "IND"]
[SourceTitle "playchess.com"]
[Source "ChessBase"]
[SourceQuality "1"]
[WhiteTeam "Macedonia"]
[BlackTeam "Norway"]
[WhiteTeamCountry "MKD"]
[BlackTeamCountry "NOR"]
[TimeControl "40/5400+30:1800+30"]

{[%evp 9,64,12,14,15,14,21,22,20,13,13,13,13,8,12,22,19,12,17,14,11,25,0,3,0,12,0,10,0,6,0,0,-20,-10,-8,-24,-25,-12,-20,-8,-6,29,-134,-133,-119,-126,-120,-126,-124,-128,-283,-294,-285,-291,-278,-272,-238,-210]} 1. e4 {[%emt 0:00:51]} c6 {[%emt 0:00:16]} 2. d4 {[%emt 0:00:18]} d5 {[%emt 0:00:09]} 3. e5 {[%emt 0:00:06]} c5 {[%emt 0:00:05]} 4. dxc5 {[%emt 0:00:03]} e6 {[%emt 0:00:16]} 5. Nf3 {[%emt 0:00:05]} Bxc5 {[%emt 0:00:11]} 6. Bd3 {[%emt 0:00:05] B12: Caro-Kann: Advance Variation.} Ne7 $1 {[%emt 0:01:27][%mdl 4] is currently scoring better than 6...Nc6.} 7. O-O {[%emt 0:00:24]} Ng6 {[%emt 0:01:22]} 8. Nbd2 {[%emt 0:00:17][%cal Bb1d2,Bd2b3,Bb3d4][%mdl 32] The position is equal.} Nc6 {[%emt 0:03:55]} 9. Nb3 {[%emt 0:00:52] Strongly threatening Bxg6.} Bb6 {[%emt 0:01:29]} 10. Re1 {[%emt 0:00:49]} O-O {[%emt 0:03:08]} 11. c3 {[%emt 0:00:23]} Bc7 {[%emt 0:23:37][%cal Rg6e5]} 12. Bxg6 {[%emt 0:01:41]} fxg6 {[%emt 0:00:18]} 13. Nbd4 {[%emt 0:00:08]} Bd7 {[%emt 0:02:26] [#]} 14. a4 $146 {[%emt 0:10:14]} ({Predecessor:} 14. h3 Nxd4 15. Nxd4 Rc8 16. Qg4 a5 17. Qg3 Qe8 18. Be3 b5 19. Rf1 Bd8 20. f4 {½-½ (34) Ionita,M (2285)-Tofan,I (2357) ICCF email 2016}) 14... h6 {[%emt 0:02:08]} 15. Nxc6 {[%emt 0:03:16]} bxc6 {[%emt 0:02:13]} 16. Be3 {[%emt 0:02:59]} g5 {[%emt 0:03:20]} 17. Bd4 {[%emt 0:07:42]} a5 {[%emt 0:05:10]} 18. b4 {[%emt 0:02:01]} Rf4 {[%emt 0:04:05]} 19. g3 {[%emt 0:09:52]} Rf5 {[%emt 0:00:54]} 20. Rb1 {[%emt 0:10:43]} Qe8 {[%emt 0:05:53]} 21. Kg2 {[%emt 0:08:47]} c5 {[%emt 0:04:41]} 22. Bxc5 {[%emt 0:03:15] And now b5 would win.} Bxa4 {[%emt 0:00:13]} 23. Qd2 {[%emt 0:02:09]} axb4 {[%emt 0:04:51]} (23... Qh5 24. Nd4 Rxe5 25. Nxe6 $16) 24. cxb4 {[%emt 0:02:17]} Bd7 {[%emt 0:04:59]} ({Much less strong is} 24... Qh5 25. Nd4 Rxe5 26. b5 (26. Nxe6 d4 $14) 26... Rxe1 27. Rxe1 $16) 25. b5 $2 {[%emt 0:06:33]} (25. Nd4 $11 Rxe5 26. Rec1) 25... Ba5 $1 $17 {[%emt 0:02:00]} ({Don't take} 25... Bxb5 26. Nd4 Bc6 27. Nxf5 exf5 28. Kg1 $16) 26. Bb4 {[%emt 0:00:57]} Bb6 $36 {[%emt 0:01:08][%mdl 2048] Keeping White busy. A strong pair of Bishops.} 27. Nd4 {[%emt 0:01:13]} Bxd4 {[%emt 0:01:45]} 28. Qxd4 {[%emt 0:00:09]} Bxb5 {[%emt 0:00:41]} 29. Bd6 $2 {[%emt 0:00:54] [#] Loses the game.} (29. Rb2 $17 {was necessary.}) 29... Ra2 $1 $19 {[%emt 0:02:29]} 30. Rb2 {[%emt 0:00:38]} Rxb2 {[%emt 0:00:28]} 31. Qxb2 {[%emt 0:00:05] [#]} Qh5 {[%emt 0:02:14]} 32. Qd4 {[%emt 0:02:40]} (32. Qxb5 {leads to mate.} Qf3+ 33. Kg1 Qxf2+ 34. Kh1 Qxe1+ 35. Kg2 Rf2+ 36. Kh3 g4+ 37. Kxg4 Qd1+) (32. Kg1 Bd3) 32... g4 {[%emt 0:04:55] Weighted Error Value: White=0.21 (precise) /Black=0.03 (flawless)} 0-1